bitfinex/quotes_SOLUSD_20241117
["timestamp","ask_amount","ask_price","bid_price","bid_amount"]
[1731850453573,12.3744,231.88,231.72,20.12549]
[1731850453774,36.4114,231.9,231.75,0.12549]
[1731850454084,36.4114,231.9,231.74,20.0]
[1731850454281,36.4114,231.9,231.73,31.7307]
[1731850454578,36.4114,231.9,231.74,20.0]
[1731850455158,4.3125,231.88,231.75,15.1023]
[1731850455761,23.776884,231.87,231.75,15.1023]
[1731850456478,0.25098,231.88,231.75,15.1023]
[1731850456788,24.12153862,231.83,231.69,10.7901]
[1731850457453,24.12153862,231.83,231.64,12.6902]
[1731850457454,24.12153862,231.83,231.65,4.3168]
[1731850457860,24.22153862,231.83,231.65,4.3168]
[1731850458056,24.12153862,231.83,231.65,4.3168]
[1731850458356,24.12153862,231.81,231.65,15.1089]
[1731850460370,0.34465462,231.79,231.65,10.7921]
[1731850460675,24.12153862,231.79,231.65,10.7921]
[1731850461772,24.12153862,231.77,231.65,10.7921]
[1731850461961,23.776884,231.77,231.65,10.7921]
[1731850462957,4.3148,231.76,231.65,10.7921]
[1731850463965,0.34465462,231.78,231.65,10.7921]
[1731850464185,4.3144,231.78,231.66,20.0]
[1731850465572,28.43503862,231.83,231.67,15.1076]
[1731850465770,28.43503862,231.83,231.68,20.0]
[1731850467159,28.43503862,231.83,231.69,4.3161]
[1731850467579,39.21873862,231.83,231.67,10.7912]
[1731850467780,39.21873862,231.83,231.67,15.1076]
[1731850469165,39.21873862,231.83,231.67,10.7912]
[1731850470578,39.21873862,231.83,231.63,35.1102]
[1731850472067,23.99604862,231.81,231.63,35.1102]
[1731850472286,39.21993862,231.81,231.63,35.1102]
[1731850479691,39.21993862,231.81,231.58,12.9996749]
[1731850479868,0.09367462,231.74,231.59,15.1128]
[1731850480068,0.09367462,231.74,231.59,10.7949]
[1731850480273,0.09367462,231.74,231.59,15.1128]
[1731850480689,0.09367462,231.72,231.58,0.3094749]
[1731850481291,0.09367462,231.72,231.58,4.6275749]
[1731850481892,24.027864,231.7,231.58,0.3094749]
[1731850482189,4.3157,231.71,231.58,0.3094749]
[1731850482772,4.3153,231.73,231.59,15.1128]
[1731850482968,0.09367462,231.72,231.59,15.1128]
[1731850483169,0.09367462,231.72,231.58,0.3094749]
[1731850483375,24.12153862,231.72,231.58,0.3094749]
[1731850484494,24.12153862,231.72,231.58,15.4229749]
[1731850484686,4.3157,231.71,231.58,15.4229749]
[1731850484874,0.25098,231.69,231.58,15.4229749]
[1731850485196,4.3157,231.71,231.58,15.4229749]
[1731850485695,4.3157,231.71,231.59,20.0]
[1731850485871,0.09367462,231.7,231.58,15.4229749]
[1731850486072,0.09367462,231.7,231.58,11.1048749]
[1731850486487,24.12153862,231.7,231.58,11.1048749]
[1731850486685,24.12153862,231.7,231.58,15.4229749]
[1731850486879,24.12153862,231.68,231.58,15.4229749]
[1731850487076,24.12153862,231.68,231.58,11.1048749]
[1731850487598,24.027864,231.68,231.58,15.4229749]
[1731850488192,0.09367462,231.67,231.58,15.4229749]
[1731850488397,4.3149,231.75,231.59,20.0]
[1731850488985,4.3149,231.75,231.6,15.1121]
[1731850488986,0.09367462,231.74,231.6,15.1121]
[1731850489187,0.09367462,231.74,231.61,20.0]
[1731850489909,30.3836,231.76,231.61,20.0]
[1731850490082,30.3836,231.76,231.61,33.2602]
[1731850491288,24.027864,231.75,231.63,20.0]
[1731850491902,30.3836,231.76,231.63,20.0]
[1731850492491,30.3836,231.76,231.64,0.12549]
[1731850493197,30.3836,231.76,231.66,20.0]
[1731850493784,23.776884,231.76,231.66,20.0]
[1731850494411,0.12549,231.75,231.65,15.1089]
[1731850495195,0.12549,231.75,231.65,10.7921]
[1731850495404,23.776884,231.73,231.65,10.7921]
[1731850495611,0.12549,231.8,231.66,20.0]
[1731850495801,24.027864,231.8,231.66,20.0]
[1731850496888,24.027864,231.8,231.67,15.1076]
[1731850496889,0.21916462,231.79,231.67,15.1076]
[1731850497415,0.12549,231.79,231.67,15.1076]
[1731850497909,0.09367462,231.78,231.67,15.1076]
[1731850498104,0.12549,231.77,231.67,15.1076]
[1731850498305,0.25098,231.77,231.67,15.1076]
[1731850498796,0.25098,231.77,231.62,21.587]
[1731850498997,23.776884,231.75,231.63,20.0]
[1731850499509,32.0361,231.86,231.64,0.1]
[1731850499711,4.3134,231.84,231.64,0.35098]
[1731850500295,4.3134,231.84,231.64,0.25098]
[1731850500497,4.3134,231.84,231.64,0.35098]
[1731850501101,0.12549,231.82,231.67,0.12549]
[1731850501303,4.3132,231.85,231.67,0.25098]
[1731850501698,26.35949886,231.97,231.67,0.25098]
[1731850501699,4.3121,231.91,231.71,20.45098]
[1731850501902,32.0361,231.92,231.75,0.1]
[1731850502102,32.0361,231.97,231.76,0.25098]
[1731850502313,36.347,231.97,231.78,0.25098]
[1731850502523,36.347,231.97,231.76,0.25098]
[1731850502813,0.1,231.95,231.71,0.12549]
[1731850502998,5.74809116,231.94,231.71,20.25098]
[1731850503207,0.09367462,231.92,231.73,20.0]
[1731850503400,0.09367462,231.92,231.74,0.12549]
[1731850503717,24.12153862,231.92,231.74,0.12549]
[1731850503913,23.776884,231.92,231.74,0.25098]
[1731850504301,23.776884,231.92,231.74,6.89776383]
[1731850504508,28.088884,231.92,231.77,15.1011]
[1731850504714,28.088884,231.92,231.78,20.0]
[1731850505101,0.21916462,231.91,231.77,15.1011]
[1731850505505,23.99604862,231.89,231.73,20.25098]
[1731850506216,0.21916462,231.85,231.72,15.1043]
[1731850506405,0.12549,231.87,231.72,15.1043]
[1731850506808,0.09367462,231.86,231.72,15.1043]
[1731850507123,4.3129,231.86,231.72,15.1043]
[1731850507296,23.776884,231.85,231.72,15.1043]
[1731850507627,23.776884,231.85,231.73,20.0]
[1731850508118,23.776884,231.85,231.7,45.4038]
[1731850508119,28.090184,231.85,231.74,10.7879]
[1731850509611,23.776884,231.85,231.74,10.7879]
[1731850509820,17.5299,231.96,231.75,20.0]
[1731850510020,17.5299,231.96,231.76,0.25098]
[1731850510525,17.5299,231.96,231.76,0.35098]
[1731850510700,45.255,232.02,231.82,32.5575]
[1731850511017,45.255,232.02,231.83,20.0]
[1731850511319,0.1,232.0,231.8,12.8463]
[1731850511526,4.3105,231.99,231.82,20.12549]
[1731850511699,4.3105,231.99,231.83,0.12549]
[1731850511902,4.3105,231.99,231.82,20.12549]
[1731850511903,0.09367462,231.98,231.82,20.0]
[1731850512115,23.87055862,231.98,231.81,15.0984]
[1731850512312,0.09367462,231.96,231.79,4.3141]
[1731850512576,0.09367462,231.9,231.72,12.5733]
[1731850512732,0.09367462,231.9,231.71,10.789]
[1731850513030,0.34465462,231.88,231.71,10.789]
[1731850513207,31.1092,231.84,231.65,44.8415]
[1731850513517,24.027864,231.81,231.62,6.64678383]
[1731850513719,0.1,231.8,231.61,6.64678383]
[1731850514024,0.22549,231.78,231.61,10.7938]
[1731850514324,0.35098,231.71,231.58,0.3094749]
[1731850514703,24.027864,231.71,231.58,0.3094749]
[1731850515018,0.1,231.69,231.58,0.3094749]
[1731850515332,0.1,231.61,231.58,0.3094749]
[1731850515509,44.3873,231.58,231.41,6.64678383]
[1731850515710,24.027864,231.57,231.39,10.96828383]
[1731850515913,24.027864,231.57,231.39,4.3215]
[1731850516209,24.127864,231.57,231.35,1.22203294]
[1731850516413,0.1,231.56,231.36,4.322]
[1731850517022,0.1,231.5,231.35,0.4768127]
[1731850517208,0.1,231.48,231.35,0.4768127]
[1731850517410,0.35098,231.44,231.35,0.4768127]
[1731850517727,0.1,231.39,231.25,10.8107]
[1731850517911,0.1,231.39,231.18,4.3255]
[1731850518104,24.027864,231.37,231.18,4.3255]
[1731850518306,24.027864,231.35,231.18,15.1395]
[1731850518503,5.65441654,231.34,231.18,15.1395]
[1731850518707,23.776884,231.33,231.18,15.1395]
[1731850518908,0.12549,231.34,231.18,15.1395]
[1731850519114,0.12549,231.41,231.18,15.1395]
[1731850519359,24.027864,231.39,231.18,10.914]
[1731850519506,23.776884,231.39,231.19,0.1]
[1731850519707,12.9301,231.53,231.25,0.1]
[1731850519928,12.9301,231.53,231.31,0.1]
[1731850520308,12.9301,231.53,231.32,0.12549]
[1731850520835,12.9301,231.53,231.34,0.12549]
[1731850521018,12.9301,231.53,231.32,1.37]
[1731850521223,0.09367462,231.51,231.32,1.37]
[1731850521427,0.09367462,231.49,231.33,15.1298]
[1731850521612,0.09367462,231.49,231.34,20.25098]
[1731850521818,0.09367462,231.49,231.33,15.1298]
[1731850522137,0.09367462,231.48,231.33,15.1298]
[1731850522814,12.9301,231.53,231.34,0.1]
[1731850523009,4.3174,231.62,231.37,0.1]
[1731850523325,6.7114343,231.61,231.38,0.12549]
[1731850523543,6.7114343,231.61,231.39,44.027864]
[1731850523842,17.247,231.65,231.42,0.12549]
[1731850524134,17.247,231.65,231.46,0.25098]
[1731850524441,12.9301,231.65,231.46,24.027864]
[1731850524620,12.9301,231.73,231.51,20.12549]
[1731850524817,4.3155,231.72,231.54,0.12549]
[1731850525117,11.02790253,231.72,231.45,23.902374]
[1731850525311,0.09367462,231.7,231.48,0.12549]
[1731850525512,4.3161,231.69,231.5,24.027864]
[1731850525728,4.3161,231.69,231.52,0.25098]
[1731850525930,0.09367462,231.68,231.51,20.0]
[1731850526426,0.21916462,231.68,231.5,0.25098]
[1731850526627,0.21916462,231.66,231.51,4.3194]
[1731850526941,23.99604862,231.66,231.51,4.3194]
[1731850527140,23.776884,231.66,231.52,0.25098]
[1731850527319,30.7276,231.75,231.53,20.0]
[1731850527515,15.118,231.71,231.53,20.0]
[1731850527914,4.3154,231.73,231.52,20.0]
[1731850528141,0.09367462,231.7,231.51,10.7986]
[1731850528525,4.3155,231.72,231.53,4.319]
[1731850528728,24.027864,231.71,231.53,4.319]
[1731850528931,0.09367462,231.7,231.51,10.7986]
[1731850529113,20.09367462,231.68,231.51,10.7986]
[1731850529449,0.21916462,231.66,231.51,10.7986]
[1731850529821,0.09367462,231.62,231.51,10.7986]
[1731850530025,0.09367462,231.6,231.51,10.7986]
[1731850530226,0.21916462,231.6,231.51,10.7986]
[1731850530748,0.21916462,231.6,231.35,12.3856]
[1731850530749,0.09367462,231.54,231.35,12.3856]
[1731850530930,0.21916462,231.5,231.37,10.8051]
[1731850531118,0.12549,231.49,231.33,4.3227]
[1731850531426,24.027864,231.56,231.33,15.1297]
[1731850531622,0.09367462,231.55,231.33,15.1297]
[1731850532017,0.09367462,231.53,231.33,15.1297]
[1731850532221,4.3192,231.52,231.33,10.807]
[1731850532427,0.09367462,231.5,231.33,10.807]
[1731850532915,0.09367462,231.48,231.33,10.807]
[1731850533425,4.3192,231.52,231.33,10.807]
[1731850533619,23.776884,231.51,231.33,10.807]
[1731850534218,0.09367462,231.5,231.33,10.807]
[1731850534423,23.87055862,231.48,231.28,4.3237]
[1731850535020,0.09367462,231.46,231.28,4.3237]
[1731850535749,0.09367462,231.44,231.28,15.1331]
[1731850535928,24.12153862,231.44,231.28,15.1331]
[1731850536243,0.09367462,231.4,231.25,4.3241]
[1731850536419,0.09367462,231.4,231.22,10.8121]
[1731850536420,20.0,231.38,231.22,10.8121]
[1731850536622,20.0,231.38,231.15,39.88070298]
[1731850536623,0.12549,231.33,231.15,15.1411]
[1731850536929,0.12549,231.32,231.15,15.1411]
[1731850537231,23.902374,231.32,231.15,15.1411]
[1731850537419,0.12549,231.31,231.15,15.1411]
[1731850537841,4.3226,231.34,231.15,15.1411]
[1731850538031,0.42991298,231.35,231.16,0.1]
[1731850538230,0.42991298,231.35,231.18,0.1]
[1731850538440,0.42991298,231.35,231.2,0.1]
[1731850538618,0.05063967,231.35,231.19,0.25098]
[1731850538949,0.05063967,231.35,231.25,0.12549]
[1731850539244,0.05063967,231.35,231.25,0.35098]
[1731850539440,0.05063967,231.35,231.25,0.25098]
[1731850539738,0.05063967,231.35,231.25,0.12549]
[1731850539951,0.05063967,231.35,231.27,44.027864]
[1731850540122,0.05063967,231.35,231.27,43.902374]
[1731850540320,0.05063967,231.35,231.28,0.12549]
[1731850541133,0.05063967,231.35,231.27,43.902374]
[1731850542142,0.05063967,231.35,231.28,15.1331]
[1731850542844,0.00599489,231.35,231.23,4.3245]
[1731850543220,0.00599489,231.35,231.22,15.1366]
[1731850544230,0.00599489,231.35,231.22,10.8118]
[1731850544840,0.00599489,231.35,231.23,20.0]
[1731850545444,0.00599489,231.35,231.24,4.3245]
[1731850545834,0.09966951,231.35,231.24,15.1357]
[1731850546046,0.22515951,231.35,231.24,15.1357]
[1731850546227,0.00599489,231.35,231.24,15.1357]
[1731850546428,17.29072189,231.35,231.24,15.1357]
[1731850546638,0.00599489,231.35,231.24,15.1357]
[1731850547049,0.00599489,231.35,231.25,43.902374]
[1731850547225,0.00599489,231.35,231.26,0.12549]
[1731850547426,0.00599489,231.35,231.3,23.776884]
[1731850547628,0.00599489,231.35,231.29,20.0]
[1731850548123,0.00599489,231.35,231.32,24.027864]
[1731850548322,0.00599489,231.35,231.33,20.0]
[1731850548538,4.3205,231.46,231.33,20.0]
[1731850548920,4.3205,231.46,231.29,24.027864]
[1731850549127,4.32,231.48,231.32,20.0]
[1731850549347,31.0362,231.49,231.28,0.12549]
[1731850549348,0.09367462,231.47,231.28,0.12549]
[1731850549534,0.09367462,231.45,231.29,15.1324]
[1731850549726,0.09367462,231.45,231.3,20.0]
[1731850550130,0.09367462,231.45,231.29,15.1324]
[1731850550334,24.12153862,231.45,231.29,15.1324]
[1731850551344,35.3561,231.49,231.31,0.12549]
[1731850551525,35.3561,231.49,231.32,15.1305]
[1731850551725,0.09367462,231.48,231.32,15.1305]
[1731850552849,23.776884,231.46,231.32,15.1305]
[1731850553043,23.776884,231.46,231.33,20.0]
[1731850554326,4.32,231.48,231.31,21.616]
[1731850554525,4.32,231.48,231.32,43.902374]
[1731850554948,24.12153862,231.47,231.31,21.616]
[1731850555321,0.34465462,231.47,231.31,21.616]
[1731850555539,24.12153862,231.45,231.31,21.616]
[1731850555937,4.3204,231.46,231.32,20.0]
[1731850556442,23.776884,231.47,231.33,15.1298]
[1731850557424,0.12549,231.47,231.33,15.1298]
[1731850558650,4.3204,231.46,231.33,15.1298]
[1731850559340,24.12153862,231.45,231.33,15.1298]
[1731850559541,24.12153862,231.45,231.23,34.91676766]
[1731850559733,23.902374,231.43,231.24,70.05176766]
[1731850559939,23.902374,231.43,231.24,56.7582]
[1731850560333,4.3207,231.44,231.26,0.1]
[1731850560647,4.3207,231.44,231.27,24.027864]
[1731850560849,0.12549,231.48,231.31,0.12549]
[1731850561056,31.0362,231.49,231.35,0.12549]
[1731850561354,12.9902,231.53,231.4,20.12549]
[1731850561552,33.236595,231.55,231.36,0.12549]
[1731850561553,17.275195,231.55,231.43,15.24879]
[1731850561741,16.8009,231.59,231.44,20.0]
[1731850561945,16.8009,231.59,231.43,15.1233]
[1731850562141,0.19367462,231.58,231.38,10.8044]
[1731850562454,0.09367462,231.56,231.36,13.41905766]
[1731850562642,16.8009,231.59,231.38,0.12549]
[1731850563356,0.09367462,231.58,231.38,33.29356766]
[1731850563648,0.09367462,231.56,231.41,15.1246]
[1731850564252,23.776884,231.56,231.41,15.1246]
[1731850564436,12.4829,231.59,231.44,20.0]
[1731850564637,16.8009,231.59,231.44,33.29356766]
[1731850565147,0.09367462,231.58,231.44,33.29356766]
[1731850565546,4.3183,231.57,231.46,15.1214]
[1731850565752,0.09367462,231.56,231.43,13.29356766]
[1731850565952,0.21916462,231.54,231.42,4.321]
[1731850566256,23.776884,231.56,231.42,4.321]
[1731850566436,12.4829,231.59,231.45,13.29356766]
[1731850566640,16.8009,231.59,231.44,13.29356766]
[1731850567147,0.09367462,231.58,231.43,13.29356766]
[1731850567345,0.09367462,231.58,231.42,28.41736766]
[1731850567539,0.09367462,231.56,231.42,28.41736766]
[1731850567964,24.12153862,231.56,231.42,28.41736766]
[1731850568540,4.3187,231.55,231.42,15.1238]
[1731850568743,23.902374,231.54,231.42,15.1238]
[1731850569441,4.44379,231.58,231.43,20.12549]
[1731850569757,4.3183,231.58,231.43,20.12549]
[1731850569957,4.3183,231.58,231.44,13.29356766]
[1731850570138,15.9614,231.61,231.44,37.19594166]
[1731850570344,20.2791,231.61,231.42,28.41736766]
[1731850570567,31.0731,231.61,231.43,0.12549]
[1731850570750,20.2791,231.61,231.44,15.1226]
[1731850570939,0.09367462,231.6,231.44,15.1226]
[1731850571545,24.12153862,231.6,231.44,15.1226]
[1731850572357,23.902374,231.58,231.44,10.8019]
[1731850572761,0.12549,231.56,231.44,10.8019]
[1731850573156,0.12549,231.54,231.44,10.8019]
[1731850573466,23.776884,231.58,231.44,10.8019]
[1731850574148,4.3179,231.59,231.45,0.12549]
[1731850574463,20.2791,231.61,231.48,0.12549]
[1731850575462,20.2791,231.61,231.49,15.1194]
[1731850575850,4.3162,231.68,231.5,20.25098]
[1731850576058,4.3162,231.68,231.53,6.5544]
[1731850576258,4.3159,231.7,231.55,0.25098]
[1731850576460,4.3149,231.75,231.57,0.25098]
[1731850577178,4.3149,231.75,231.49,36.9186]
[1731850577349,4.36101609,231.74,231.49,15.3194]
[1731850577545,0.12549,231.73,231.49,15.3194]
[1731850577746,15.32286462,231.73,231.49,15.1194]
[1731850578270,4.53446462,231.73,231.5,0.1]
[1731850578565,0.25098,231.71,231.5,20.0]
[1731850578751,0.12549,231.69,231.5,20.0]
[1731850578952,0.09367462,231.66,231.5,20.0]
[1731850579148,0.21916462,231.66,231.5,20.0]
[1731850579568,23.776884,231.64,231.51,15.118]
[1731850580565,24.027864,231.68,231.53,15.1167]
[1731850580874,4.3153,231.73,231.53,15.1167]
[1731850581171,0.09367462,231.72,231.53,15.1167]
[1731850581465,0.09367462,231.72,231.54,20.12549]
[1731850581674,4.3153,231.73,231.54,20.12549]
[1731850581851,23.87055862,231.72,231.54,20.12549]
[1731850582048,23.87055862,231.7,231.55,15.1155]
[1731850582447,23.776884,231.7,231.56,20.0]
[1731850582652,4.3157,231.71,231.56,20.0]
[1731850583575,4.3157,231.71,231.57,0.12549]
[1731850583866,4.3157,231.71,231.57,0.25098]
[1731850584175,4.40857462,231.75,231.59,20.0]
[1731850585064,38.893007,231.82,231.61,20.12549]
[1731850585269,4.3138,231.81,231.62,0.12549]
[1731850585772,4.3138,231.81,231.64,0.12549]
[1731850586163,0.09367462,231.8,231.65,15.1089]
[1731850586374,4.3138,231.81,231.67,0.25098]
[1731850586752,6.037,231.87,231.67,0.25098]
[1731850586953,4.3129,231.86,231.67,0.25098]
[1731850587563,4.3129,231.86,231.68,20.0]
[1731850587889,4.3129,231.86,231.7,15.1057]
[1731850588383,24.027864,231.85,231.7,15.1057]
[1731850588751,4.3129,231.86,231.71,20.12549]
[1731850588959,4.3129,231.86,231.73,20.0]
[1731850589579,4.3118,231.92,231.73,20.0]
[1731850590077,4.3118,231.92,231.75,20.12549]
[1731850590748,0.4768127,231.93,231.78,23.902374]
[1731850590960,0.4768127,231.93,231.8,0.12549]
[1731850591256,0.4768127,231.93,231.83,20.0]
[1731850592157,0.4768127,231.93,231.83,10.7835]
[1731850592479,0.4768127,231.93,231.84,20.0]
[1731850593276,0.4768127,231.93,231.85,15.0959]
[1731850594265,0.4768127,231.93,231.81,6.5544]
[1731850594470,0.4768127,231.93,231.81,21.6527]
[1731850594665,4.7885127,231.93,231.81,21.6527]
[1731850595755,0.4768127,231.93,231.82,0.12549]
[1731850596070,0.4768127,231.93,231.82,24.027864]
[1731850596777,0.4768127,231.93,231.84,0.12549]
[1731850597079,0.4768127,231.93,231.86,20.0]
[1731850597381,0.4768127,231.93,231.85,15.0959]
[1731850597592,0.4768127,231.93,231.86,20.0]
[1731850598470,0.4768127,231.93,231.85,15.0959]
[1731850599072,0.4768127,231.93,231.85,10.7828]
[1731850599272,4.7885127,231.93,231.85,10.7828]
[1731850599485,0.09367462,231.91,231.8,15.099]
[1731850599862,24.027864,231.92,231.8,15.099]
[1731850600485,4.3122,231.9,231.8,10.7851]
[1731850600861,28.214174,231.92,231.8,10.7851]
[1731850601062,0.4768127,231.93,231.8,10.7851]
[1731850601262,0.4768127,231.93,231.81,20.0]
[1731850601564,0.05650119,231.93,231.82,0.12549]
[1731850602785,0.05650119,231.93,231.84,20.0]
[1731850603786,0.05650119,231.93,231.85,10.7828]
[1731850604168,0.05650119,231.93,231.83,4.3135]
[1731850604683,0.05650119,231.93,231.77,4.3145]
[1731850604873,24.12153862,231.91,231.76,4.3147]
[1731850605272,23.902374,231.91,231.76,15.1017]
[1731850605469,0.05650119,231.93,231.76,15.1017]
[1731850606165,0.05650119,231.93,231.77,20.0]
[1731850607482,4.58726581,231.93,231.78,15.1004]
[1731850607678,23.902374,231.92,231.79,20.0]
[1731850608378,0.12549,231.9,231.79,20.0]
[1731850608571,23.776884,231.89,231.8,15.0991]
[1731850609173,4.3122,231.9,231.8,15.0991]
[1731850609376,0.05650119,231.93,231.81,20.0]
[1731850609676,0.05650119,231.93,231.84,0.12549]
[1731850610465,0.05650119,231.93,231.86,20.12549]
[1731850610873,0.00673835,231.93,231.86,20.0]
[1731850611085,0.00673835,231.93,231.85,15.0959]
[1731850614382,0.00673835,231.93,231.85,10.7828]
[1731850614695,0.12549,231.89,231.8,10.7847]
[1731850614900,0.25098,231.89,231.8,10.7847]
[1731850615272,0.21916462,231.84,231.75,10.7873]
[1731850615472,23.776884,231.89,231.75,10.7873]
[1731850615669,0.25098,231.88,231.75,10.7873]
[1731850615873,0.09367462,231.87,231.75,10.7873]
[1731850616287,23.902374,231.85,231.75,10.7873]
[1731850617198,23.902374,231.87,231.75,10.7873]
[1731850617799,23.902374,231.87,231.76,20.0]
[1731850618304,23.902374,231.87,231.77,10.7865]
[1731850619002,28.215174,231.87,231.77,10.7865]
[1731850619782,23.902374,231.87,231.77,10.7865]
[1731850619982,4.3122,231.9,231.78,20.0]
[1731850620183,6.8242576,232.04,231.78,20.0]
[1731850620184,4.3115,231.94,231.78,20.0]
[1731850620388,6.3121,231.98,231.8,20.0]
[1731850620879,4.3115,231.94,231.8,20.0]
[1731850621283,4.3112,231.96,231.8,20.0]
[1731850621482,6.3121,231.98,231.81,0.12549]
[1731850621795,0.00673835,231.93,231.81,0.12549]
[1731850621976,0.00673835,231.93,231.8,20.0]
[1731850622178,0.00673835,231.93,231.81,0.12549]
[1731850622382,0.00673835,231.93,231.82,15.0978]
[1731850622688,0.00673835,231.93,231.83,20.0]
[1731850623291,0.00673835,231.93,231.82,15.0978]
[1731850623889,0.1,231.9,231.75,13.29356766]
[1731850624074,44.027864,231.89,231.69,13.29356766]
[1731850624287,44.127864,231.89,231.69,10.7902]
[1731850624482,0.09367462,231.86,231.69,10.7902]
[1731850625299,0.09367462,231.86,231.65,21.5836]
[1731850625300,4.3131,231.85,231.65,21.5836]
[1731850625605,24.12153862,231.84,231.65,21.5836]
[1731850626102,24.12153862,231.84,231.66,24.027864]
[1731850626291,24.12153862,231.84,231.66,0.12549]
[1731850626494,24.12153862,231.82,231.67,15.1076]
[1731850627616,4.3138,231.81,231.67,10.7912]
[1731850627814,24.12153862,231.8,231.68,20.0]
[1731850628129,24.027864,231.77,231.62,10.7933]
[1731850628409,0.09367462,231.76,231.59,15.1127]
[1731850628703,20.09367462,231.76,231.59,10.7949]
[1731850629009,0.09367462,231.74,231.59,10.7949]
[1731850629714,0.21916462,231.72,231.59,10.7949]
[1731850629910,0.09367462,231.7,231.55,4.3187]
[1731850630086,0.09367462,231.66,231.54,10.7971]
[1731850630284,24.12153862,231.64,231.49,10.7995]
[1731850631410,0.34465462,231.62,231.43,15.24879]
[1731850631589,24.12153862,231.62,231.43,15.24879]
[1731850631914,24.12153862,231.62,231.44,24.027864]
[1731850631915,23.902374,231.62,231.44,24.027864]
[1731850632803,23.902374,231.62,231.46,0.12549]
[1731850633005,28.219874,231.62,231.46,0.12549]
[1731850633808,6.3121,231.65,231.5,0.12549]
[1731850633995,23.776884,231.64,231.49,20.0]
[1731850634198,0.21916462,231.63,231.46,20.0]
[1731850634403,0.21916462,231.63,231.47,0.12549]
[1731850634911,0.21916462,231.63,231.48,15.12]
[1731850635088,23.902374,231.62,231.48,15.12]
[1731850635289,6.3121,231.65,231.48,15.12]
[1731850635491,0.21916462,231.62,231.48,15.12]
[1731850635695,0.12549,231.59,231.48,10.8]
[1731850635895,15.304,231.58,231.48,10.8]
[1731850636108,23.902374,231.57,231.48,10.8]
[1731850636320,0.09367462,231.54,231.42,10.8025]
[1731850636497,23.776884,231.55,231.42,10.8025]
[1731850637102,0.21916462,231.56,231.42,10.8025]
[1731850637327,0.21916462,231.54,231.42,10.8025]
[1731850637619,0.12549,231.53,231.42,10.8025]
[1731850637821,0.21916462,231.54,231.42,10.8025]
[1731850638119,4.44459,231.53,231.42,10.8025]
[1731850638415,4.3191,231.53,231.42,10.8025]
[1731850638921,15.304,231.58,231.44,0.12549]
[1731850639123,15.304,231.64,231.48,0.12549]
[1731850639801,15.304,231.64,231.48,23.902374]
[1731850640008,15.304,231.64,231.51,20.0]
[1731850640208,0.1,231.8,231.51,20.0]
[1731850640209,4.3163,231.68,231.54,0.12549]
[1731850640394,26.2052,231.7,231.54,0.12549]
[1731850640801,26.2052,231.7,231.54,1.49549]
[1731850640996,21.8892,231.7,231.56,20.12549]
[1731850641221,21.8892,231.7,231.57,23.776884]
[1731850641524,15.304,231.7,231.59,0.12549]
[1731850641815,26.204,231.76,231.59,23.902374]
[1731850642017,26.204,231.76,231.61,0.12549]
[1731850642316,21.8892,231.76,231.63,20.0]
[1731850643013,21.8892,231.76,231.64,1.37]
[1731850643316,21.8892,231.82,231.68,20.12549]
[1731850643613,26.203,231.82,231.68,20.12549]
[1731850644124,0.09367462,231.81,231.69,15.1063]
[1731850644303,20.09367462,231.81,231.68,1.37]
[1731850644625,24.027864,231.78,231.68,1.37]
[1731850644919,24.027864,231.76,231.69,1.37]
[1731850645122,24.027864,231.71,231.69,1.37]
[1731850645309,30.613064,231.7,231.69,1.37]
[1731850645814,24.027864,231.69,231.57,10.7955]
[1731850646021,24.027864,231.69,231.57,15.1138]
[1731850646215,4.3162,231.68,231.52,15.1174]